[Event "Titled Tuesday Blitz April 18 Early 2023"]
[White "Durarbayli, Vasif"]
[Black "Andreikin, Dmitry"]
[WhiteFideId "13402935"]
[BlackFideId "4158814"]
[WhiteElo "2551"]
[BlackElo "2736"]
[Result "1/2-1/2"]
[Round "05"]
[TimeControl "180+2"]
[Date "2023.04.18"]
[WhiteClock "0:00:07"]
[BlackClock "0:00:08"]

1. e4 {[%clk 0:03:00]}  c5 {[%clk 0:02:55]} 2. Nf3 {[%clk 0:03:00]}  e6 {[%clk 0:02:55]} 3. d4 {[%clk 0:03:00]}  cxd4 {[%clk 0:02:56]} 4. Nxd4 {[%clk 0:03:00]}  Nc6 {[%clk 0:02:56]} 5. Nc3 {[%clk 0:03:00]}  Qc7 {[%clk 0:02:55]} 6. Be3 {[%clk 0:03:00]}  a6 {[%clk 0:02:54]} 7. Qf3 {[%clk 0:03:00]}  Nf6 {[%clk 0:02:52]} 8. Qg3 {[%clk 0:02:54]}  Qxg3 {[%clk 0:02:49]} 9. hxg3 {[%clk 0:02:54]}  Ng4 {[%clk 0:02:47]} 10. Nxc6 {[%clk 0:02:35]}  Nxe3 {[%clk 0:02:46]} 11. Nd4 {[%clk 0:02:34]}  Ng4 {[%clk 0:02:38]} 12. Be2 {[%clk 0:02:28]}  Bc5 {[%clk 0:02:34]} 13. Bxg4 {[%clk 0:02:12]}  Bxd4 {[%clk 0:02:33]} 14. Rd1 {[%clk 0:02:11]}  Bxc3+ {[%clk 0:02:21]} 15. bxc3 {[%clk 0:02:12]}  b5 {[%clk 0:02:05]} 16. c4 {[%clk 0:02:11]}  Bb7 {[%clk 0:02:00]} 17. Rd4 {[%clk 0:02:08]}  Ke7 {[%clk 0:01:50]} 18. Kd2 {[%clk 0:01:42]}  Rac8 {[%clk 0:01:25]} 19. cxb5 {[%clk 0:01:34]}  axb5 {[%clk 0:01:26]} 20. Be2 {[%clk 0:01:20]}  Rc5 {[%clk 0:01:23]} 21. f4 {[%clk 0:01:16]}  h6 {[%clk 0:01:18]} 22. Rb1 {[%clk 0:01:13]}  Bc6 {[%clk 0:01:18]} 23. Rdb4 {[%clk 0:01:00]}  Ra8 {[%clk 0:00:56]} 24. R1b2 {[%clk 0:01:00]}  Ra3 {[%clk 0:00:54]} 25. Bd3 {[%clk 0:01:01]}  g5 {[%clk 0:00:53]} 26. R4b3 {[%clk 0:00:58]}  Ra4 {[%clk 0:00:49]} 27. Rb4 {[%clk 0:00:55]}  Ra3 {[%clk 0:00:39]} 28. R4b3 {[%clk 0:00:55]}  Ra5 {[%clk 0:00:40]} 29. Rb4 {[%clk 0:00:45]}  h5 {[%clk 0:00:39]} 30. Ke3 {[%clk 0:00:44]}  h4 {[%clk 0:00:35]} 31. gxh4 {[%clk 0:00:43]}  gxh4 {[%clk 0:00:36]} 32. Kf2 {[%clk 0:00:35]}  Rc3 {[%clk 0:00:27]} 33. Kg1 {[%clk 0:00:32]}  Rca3 {[%clk 0:00:22]} 34. Bxb5 {[%clk 0:00:31]}  Bxb5 {[%clk 0:00:20]} 35. Rxb5 {[%clk 0:00:31]}  Rxa2 {[%clk 0:00:20]} 36. Rxa2 {[%clk 0:00:23]}  Rxa2 {[%clk 0:00:21]} 37. Rc5 {[%clk 0:00:22]}  Ra4 {[%clk 0:00:20]} 38. c4 {[%clk 0:00:22]}  Ra3 {[%clk 0:00:14]} 39. Kf2 {[%clk 0:00:22]}  Rc3 {[%clk 0:00:11]} 40. e5 {[%clk 0:00:18]}  f5 {[%clk 0:00:10]} 41. Rc8 {[%clk 0:00:18]}  Rg3 {[%clk 0:00:06]} 42. c5 {[%clk 0:00:15]}  Rc3 {[%clk 0:00:05]} 43. Ke2 {[%clk 0:00:11]}  Rc2+ {[%clk 0:00:05]} 44. Kf3 {[%clk 0:00:11]}  Rc4 {[%clk 0:00:05]} 45. Ke3 {[%clk 0:00:10]}  Rc3+ {[%clk 0:00:05]} 46. Kf2 {[%clk 0:00:10]}  h3 {[%clk 0:00:05]} 47. gxh3 {[%clk 0:00:07]}  Rxh3 {[%clk 0:00:06]} 48. c6 {[%clk 0:00:07]}  dxc6 {[%clk 0:00:06]} 49. Rc7+ {[%clk 0:00:07]}  Ke8 {[%clk 0:00:07]} 50. Rxc6 {[%clk 0:00:07]}  Kf7 {[%clk 0:00:07]} 51. Rd6 {[%clk 0:00:06]}  Ra3 {[%clk 0:00:07]} 52. Kg2 {[%clk 0:00:05]}  Rb3 {[%clk 0:00:06]} 53. Kf2 {[%clk 0:00:05]}  Rb4 {[%clk 0:00:06]} 54. Kf3 {[%clk 0:00:05]}  Rb1 {[%clk 0:00:06]} 55. Kg3 {[%clk 0:00:06]}  Rf1 {[%clk 0:00:06]} 56. Ra6 {[%clk 0:00:05]}  Rg1+ {[%clk 0:00:05]} 57. Kf3 {[%clk 0:00:05]}  Rb1 {[%clk 0:00:06]} 58. Rc6 {[%clk 0:00:03]}  Rb7 {[%clk 0:00:05]} 59. Kg3 {[%clk 0:00:03]}  Rb4 {[%clk 0:00:05]} 60. Kf3 {[%clk 0:00:03]}  Rb3+ {[%clk 0:00:04]} 61. Kf2 {[%clk 0:00:03]}  Ke7 {[%clk 0:00:05]} 62. Ra6 {[%clk 0:00:03]}  Rc3 {[%clk 0:00:05]} 63. Ra7+ {[%clk 0:00:03]}  Ke8 {[%clk 0:00:05]} 64. Ke2 {[%clk 0:00:02]}  Rb3 {[%clk 0:00:05]} 65. Kf2 {[%clk 0:00:02]}  Rd3 {[%clk 0:00:05]} 66. Ke2 {[%clk 0:00:03]}  Rd4 {[%clk 0:00:06]} 67. Ke3 {[%clk 0:00:03]}  Rb4 {[%clk 0:00:06]} 68. Kf3 {[%clk 0:00:02]}  Rb3+ {[%clk 0:00:07]} 69. Kf2 {[%clk 0:00:03]}  Kf8 {[%clk 0:00:07]} 70. Ke2 {[%clk 0:00:03]}  Rc3 {[%clk 0:00:08]} 71. Kf2 {[%clk 0:00:04]}  Rc2+ {[%clk 0:00:07]} 72. Kf3 {[%clk 0:00:05]}  Rc1 {[%clk 0:00:07]} 73. Ke3 {[%clk 0:00:05]}  Re1+ {[%clk 0:00:07]} 74. Kf3 {[%clk 0:00:06]}  Rf1+ {[%clk 0:00:07]} 75. Ke3 {[%clk 0:00:06]}  Re1+ {[%clk 0:00:07]} 76. Kf3 {[%clk 0:00:06]}  Rf1+ {[%clk 0:00:08]} 77. Ke3 {[%clk 0:00:07]}  Re1+ {[%clk 0:00:08]} 1/2-1/2


[Site "https://www.chess.com"]

[Event "Titled Tuesday Blitz April 18 Early 2023"]
[White "Korobov, Anton"]
[Black "Daneshvar, Bardiya"]
[WhiteFideId "14105730"]
[BlackFideId "12576468"]
[WhiteElo "2638"]
[BlackElo "2468"]
[Result "1-0"]
[Round "05"]
[TimeControl "180+2"]
[Date "2023.04.18"]
[WhiteClock "0:00:50"]
[BlackClock "0:00:02"]

1. d4 {[%clk 0:03:00]}  Nf6 {[%clk 0:03:00]} 2. c4 {[%clk 0:03:00]}  e6 {[%clk 0:03:00]} 3. Nf3 {[%clk 0:03:00]}  d5 {[%clk 0:02:59]} 4. Nc3 {[%clk 0:02:59]}  Bb4 {[%clk 0:03:00]} 5. e3 {[%clk 0:02:57]}  O-O {[%clk 0:02:58]} 6. Bd3 {[%clk 0:02:56]}  dxc4 {[%clk 0:02:51]} 7. Bxc4 {[%clk 0:02:56]}  c5 {[%clk 0:02:51]} 8. O-O {[%clk 0:02:56]}  Nc6 {[%clk 0:02:45]} 9. a3 {[%clk 0:02:52]}  Ba5 {[%clk 0:02:44]} 10. Qd3 {[%clk 0:02:32]}  h6 {[%clk 0:02:28]} 11. Rd1 {[%clk 0:02:28]}  cxd4 {[%clk 0:01:41]} 12. exd4 {[%clk 0:02:29]}  Ne7 {[%clk 0:01:39]} 13. Ne5 {[%clk 0:02:12]}  Bc7 {[%clk 0:01:35]} 14. Qh3 {[%clk 0:01:57]}  Nf5 {[%clk 0:01:27]} 15. Bf4 {[%clk 0:01:43]}  Qe7 {[%clk 0:01:08]} 16. g4 {[%clk 0:01:39]}  Nd6 {[%clk 0:00:45]} 17. Bd3 {[%clk 0:01:39]}  Nd5 {[%clk 0:00:40]} 18. Bg3 {[%clk 0:01:23]}  Nxc3 {[%clk 0:00:33]} 19. bxc3 {[%clk 0:01:23]}  Bd7 {[%clk 0:00:23]} 20. Re1 {[%clk 0:01:18]}  Bc6 {[%clk 0:00:18]} 21. Bh4 {[%clk 0:01:17]}  f6 {[%clk 0:00:13]} 22. Nxc6 {[%clk 0:01:12]}  bxc6 {[%clk 0:00:13]} 23. g5 {[%clk 0:01:08]}  fxg5 {[%clk 0:00:11]} 24. Rxe6 {[%clk 0:01:08]}  Qd7 {[%clk 0:00:08]} 25. Bg3 {[%clk 0:01:05]}  Rf6 {[%clk 0:00:04]} 26. Rae1 {[%clk 0:00:59]}  Raf8 {[%clk 0:00:03]} 27. Kg2 {[%clk 0:00:53]}  Rxe6 {[%clk 0:00:04]} 28. Qxe6+ {[%clk 0:00:51]}  Qxe6 {[%clk 0:00:04]} 29. Rxe6 {[%clk 0:00:52]}  Rf6 {[%clk 0:00:04]} 30. Re7 {[%clk 0:00:52]}  Bb6 {[%clk 0:00:02]} 31. Be5 {[%clk 0:00:50]}  Rf7 {[%clk 0:00:02]} 32. Bxd6 {[%clk 0:00:50]} 1-0


[Site "https://www.chess.com"]

[Event "Titled Tuesday Blitz April 18 Early 2023"]
[White "Puranik, Abhimanyu"]
[Black "Mahdavi, Reza"]
[WhiteFideId "5061245"]
[BlackFideId "12595926"]
[WhiteElo "2477"]
[BlackElo "2357"]
[Result "0-1"]
[Round "05"]
[TimeControl "180+2"]
[Date "2023.04.18"]
[WhiteClock "0:00:06"]
[BlackClock "0:00:16"]

1. c4 {[%clk 0:03:00]}  Nf6 {[%clk 0:02:59]} 2. Nc3 {[%clk 0:03:00]}  g6 {[%clk 0:02:59]} 3. g3 {[%clk 0:02:58]}  Bg7 {[%clk 0:03:00]} 4. Bg2 {[%clk 0:02:59]}  O-O {[%clk 0:03:00]} 5. d4 {[%clk 0:02:59]}  d6 {[%clk 0:03:01]} 6. Nf3 {[%clk 0:02:59]}  c6 {[%clk 0:03:02]} 7. O-O {[%clk 0:02:59]}  Qa5 {[%clk 0:03:02]} 8. e4 {[%clk 0:02:53]}  e5 {[%clk 0:02:56]} 9. h3 {[%clk 0:02:47]}  exd4 {[%clk 0:02:54]} 10. Nxd4 {[%clk 0:02:47]}  Nbd7 {[%clk 0:02:54]} 11. Qc2 {[%clk 0:02:37]}  Ne5 {[%clk 0:02:54]} 12. b3 {[%clk 0:02:34]}  Re8 {[%clk 0:02:49]} 13. Bd2 {[%clk 0:02:28]}  Qb6 {[%clk 0:02:39]} 14. Be3 {[%clk 0:02:26]}  Qa5 {[%clk 0:02:33]} 15. Rfe1 {[%clk 0:02:22]}  h6 {[%clk 0:02:13]} 16. Rab1 {[%clk 0:02:19]}  Kh7 {[%clk 0:02:12]} 17. f4 {[%clk 0:02:17]}  Ned7 {[%clk 0:02:12]} 18. b4 {[%clk 0:02:14]}  Qc7 {[%clk 0:02:12]} 19. Rbd1 {[%clk 0:02:00]}  a5 {[%clk 0:02:11]} 20. Ndb5 {[%clk 0:01:55]}  cxb5 {[%clk 0:02:11]} 21. Nxb5 {[%clk 0:01:56]}  Qb8 {[%clk 0:02:11]} 22. Nxd6 {[%clk 0:01:56]}  Rf8 {[%clk 0:02:05]} 23. e5 {[%clk 0:01:56]}  Ne8 {[%clk 0:02:01]} 24. b5 {[%clk 0:01:44]}  Nxd6 {[%clk 0:01:59]} 25. Rxd6 {[%clk 0:01:44]}  Nxe5 {[%clk 0:01:59]} 26. c5 {[%clk 0:01:31]}  Bf5 {[%clk 0:01:57]} 27. Qa4 {[%clk 0:01:15]}  Nd3 {[%clk 0:01:51]} 28. Re2 {[%clk 0:01:11]}  Re8 {[%clk 0:01:49]} 29. Qc4 {[%clk 0:01:09]}  Qc7 {[%clk 0:01:21]} 30. Rxd3 {[%clk 0:00:59]}  Bxd3 {[%clk 0:01:22]} 31. Qxd3 {[%clk 0:00:59]}  Rad8 {[%clk 0:01:23]} 32. Qc4 {[%clk 0:00:59]}  Rxe3 {[%clk 0:01:20]} 33. Rxe3 {[%clk 0:00:58]}  Bd4 {[%clk 0:01:21]} 34. Kf2 {[%clk 0:00:52]}  Bxc5 {[%clk 0:01:20]} 35. Kf1 {[%clk 0:00:50]}  Rd1+ {[%clk 0:01:04]} 36. Ke2 {[%clk 0:00:49]}  Rg1 {[%clk 0:00:38]} 37. Bd5 {[%clk 0:00:47]}  Qd6 {[%clk 0:00:33]} 38. Re5 {[%clk 0:00:29]}  b6 {[%clk 0:00:30]} 39. Qd3 {[%clk 0:00:26]}  Kg7 {[%clk 0:00:25]} 40. h4 {[%clk 0:00:24]}  Qf6 {[%clk 0:00:24]} 41. h5 {[%clk 0:00:24]}  Bd6 {[%clk 0:00:23]} 42. Re3 {[%clk 0:00:19]}  Qb2+ {[%clk 0:00:22]} 43. Qd2 {[%clk 0:00:20]}  Qb1 {[%clk 0:00:17]} 44. Qc3+ {[%clk 0:00:18]}  f6 {[%clk 0:00:15]} 45. Qd3 {[%clk 0:00:06]}  Qf1+ {[%clk 0:00:15]} 46. Kd2 {[%clk 0:00:06]}  Bb4+ {[%clk 0:00:16]} 47. Kc2 {[%clk 0:00:06]}  Qb1# {[%clk 0:00:16]} 0-1


[Site "https://www.chess.com"]

[Event "Titled Tuesday Blitz April 18 Early 2023"]
[White "Naroditsky, Daniel"]
[Black "Demchenko, Anton"]
[WhiteFideId "2026961"]
[BlackFideId "4160258"]
[WhiteElo "2633"]
[BlackElo "2545"]
[Result "1/2-1/2"]
[Round "05"]
[TimeControl "180+2"]
[Date "2023.04.18"]
[WhiteClock "0:00:05"]
[BlackClock "0:00:11"]

1. d4 {[%clk 0:03:00]}  d5 {[%clk 0:03:00]} 2. Nc3 {[%clk 0:03:00]}  Nf6 {[%clk 0:03:00]} 3. Bf4 {[%clk 0:02:59]}  c5 {[%clk 0:03:00]} 4. e4 {[%clk 0:02:59]}  Nxe4 {[%clk 0:02:59]} 5. Nxe4 {[%clk 0:03:00]}  dxe4 {[%clk 0:03:00]} 6. dxc5 {[%clk 0:03:01]}  Qa5+ {[%clk 0:03:00]} 7. c3 {[%clk 0:03:01]}  Qxc5 {[%clk 0:02:56]} 8. Qa4+ {[%clk 0:03:01]}  Nc6 {[%clk 0:02:49]} 9. Qxe4 {[%clk 0:03:01]}  Bf5 {[%clk 0:02:45]} 10. Qa4 {[%clk 0:02:57]}  Qa5 {[%clk 0:02:02]} 11. Qxa5 {[%clk 0:02:45]}  Nxa5 {[%clk 0:02:02]} 12. Nf3 {[%clk 0:02:43]}  a6 {[%clk 0:01:36]} 13. Nd4 {[%clk 0:02:32]}  Bd7 {[%clk 0:01:36]} 14. Be2 {[%clk 0:02:20]}  f6 {[%clk 0:01:31]} 15. Bc7 {[%clk 0:02:04]}  Nc6 {[%clk 0:01:28]} 16. Bf3 {[%clk 0:01:54]}  Rc8 {[%clk 0:01:21]} 17. Bb6 {[%clk 0:01:45]}  e5 {[%clk 0:01:09]} 18. Nb3 {[%clk 0:01:46]}  Be6 {[%clk 0:00:50]} 19. O-O-O {[%clk 0:01:21]}  Be7 {[%clk 0:00:45]} 20. Na5 {[%clk 0:01:03]}  Nxa5 {[%clk 0:00:44]} 21. Bxa5 {[%clk 0:01:03]}  Rb8 {[%clk 0:00:39]} 22. Bc7 {[%clk 0:01:01]}  Rc8 {[%clk 0:00:39]} 23. Bd6 {[%clk 0:00:54]}  b6 {[%clk 0:00:20]} 24. Bb7 {[%clk 0:00:51]}  Rd8 {[%clk 0:00:21]} 25. Bc7 {[%clk 0:00:41]}  Rxd1+ {[%clk 0:00:21]} 26. Rxd1 {[%clk 0:00:42]}  Bc5 {[%clk 0:00:19]} 27. Rd2 {[%clk 0:00:41]}  a5 {[%clk 0:00:18]} 28. a3 {[%clk 0:00:38]}  Kf7 {[%clk 0:00:06]} 29. b4 {[%clk 0:00:38]}  axb4 {[%clk 0:00:07]} 30. axb4 {[%clk 0:00:36]}  Be7 {[%clk 0:00:07]} 31. Kb2 {[%clk 0:00:30]}  b5 {[%clk 0:00:08]} 32. f3 {[%clk 0:00:18]}  g5 {[%clk 0:00:07]} 33. Kb1 {[%clk 0:00:13]}  h5 {[%clk 0:00:06]} 34. Ba6 {[%clk 0:00:13]}  Bc4 {[%clk 0:00:05]} 35. Bb7 {[%clk 0:00:12]}  Ke6 {[%clk 0:00:05]} 36. Bc6 {[%clk 0:00:10]}  Kf7 {[%clk 0:00:04]} 37. Bd5+ {[%clk 0:00:06]}  Bxd5 {[%clk 0:00:04]} 38. Rxd5 {[%clk 0:00:07]}  Rc8 {[%clk 0:00:05]} 39. Ba5 {[%clk 0:00:06]}  Rxc3 {[%clk 0:00:05]} 40. Rxb5 {[%clk 0:00:06]}  g4 {[%clk 0:00:04]} 41. fxg4 {[%clk 0:00:04]}  hxg4 {[%clk 0:00:05]} 42. Rd5 {[%clk 0:00:05]}  Re3 {[%clk 0:00:05]} 43. b5 {[%clk 0:00:04]}  Ke6 {[%clk 0:00:06]} 44. Rd2 {[%clk 0:00:03]}  Rb3+ {[%clk 0:00:05]} 45. Rb2 {[%clk 0:00:04]}  Rxb2+ {[%clk 0:00:06]} 46. Kxb2 {[%clk 0:00:04]}  Kd5 {[%clk 0:00:07]} 47. Kc3 {[%clk 0:00:04]}  f5 {[%clk 0:00:07]} 48. Bc7 {[%clk 0:00:03]}  e4 {[%clk 0:00:05]} 49. b6 {[%clk 0:00:02]}  Bf6+ {[%clk 0:00:06]} 50. Kd2 {[%clk 0:00:02]}  Kc6 {[%clk 0:00:06]} 51. Ke3 {[%clk 0:00:03]}  Bg5+ {[%clk 0:00:05]} 52. Kd4 {[%clk 0:00:03]}  Bf6+ {[%clk 0:00:05]} 53. Ke3 {[%clk 0:00:04]}  Bg5+ {[%clk 0:00:05]} 54. Kd4 {[%clk 0:00:05]}  Bf6+ {[%clk 0:00:06]} 55. Kc4 {[%clk 0:00:05]}  Bg7 {[%clk 0:00:05]} 56. h3 {[%clk 0:00:04]}  gxh3 {[%clk 0:00:05]} 57. gxh3 {[%clk 0:00:04]}  Bf6 {[%clk 0:00:06]} 58. Kb4 {[%clk 0:00:02]}  f4 {[%clk 0:00:06]} 59. Bxf4 {[%clk 0:00:02]}  Kxb6 {[%clk 0:00:06]} 60. Kc4 {[%clk 0:00:03]}  Kc6 {[%clk 0:00:07]} 61. Be3 {[%clk 0:00:03]}  Kd6 {[%clk 0:00:07]} 62. Bd4 {[%clk 0:00:03]}  Ke6 {[%clk 0:00:08]} 63. Bxf6 {[%clk 0:00:02]}  Kxf6 {[%clk 0:00:08]} 64. Kd4 {[%clk 0:00:03]}  Kg5 {[%clk 0:00:09]} 65. Kxe4 {[%clk 0:00:04]}  Kh4 {[%clk 0:00:10]} 66. Kf3 {[%clk 0:00:05]}  Kxh3 {[%clk 0:00:11]} 1/2-1/2


[Site "https://www.chess.com"]

[Event "Titled Tuesday Blitz April 18 Early 2023"]
[White "Deac, Bogdan-Daniel"]
[Black "Kushko, Dmitriy"]
[WhiteFideId "1226380"]
[BlackFideId "14162261"]
[WhiteElo "2649"]
[BlackElo "2230"]
[Result "1-0"]
[Round "05"]
[TimeControl "180+2"]
[Date "2023.04.18"]
[WhiteClock "0:00:11"]
[BlackClock "0:00:20"]

1. b3 {[%clk 0:03:00]}  d5 {[%clk 0:02:59]} 2. Bb2 {[%clk 0:03:01]}  Bg4 {[%clk 0:02:59]} 3. Nf3 {[%clk 0:03:01]}  Bxf3 {[%clk 0:02:58]} 4. exf3 {[%clk 0:03:02]}  e6 {[%clk 0:02:57]} 5. g3 {[%clk 0:03:02]}  Nf6 {[%clk 0:02:57]} 6. Bg2 {[%clk 0:03:02]}  g6 {[%clk 0:02:57]} 7. f4 {[%clk 0:03:01]}  Bg7 {[%clk 0:02:57]} 8. O-O {[%clk 0:03:02]}  O-O {[%clk 0:02:57]} 9. c4 {[%clk 0:03:02]}  c6 {[%clk 0:02:55]} 10. d4 {[%clk 0:03:02]}  Nbd7 {[%clk 0:02:51]} 11. Nd2 {[%clk 0:03:03]}  Ne8 {[%clk 0:02:51]} 12. Nf3 {[%clk 0:02:50]}  Nd6 {[%clk 0:02:50]} 13. Qc2 {[%clk 0:02:50]}  Re8 {[%clk 0:02:49]} 14. Ne5 {[%clk 0:02:47]}  Nf6 {[%clk 0:02:48]} 15. Rfe1 {[%clk 0:02:44]}  Rc8 {[%clk 0:02:48]} 16. Rad1 {[%clk 0:02:41]}  Nde4 {[%clk 0:02:44]} 17. c5 {[%clk 0:02:32]}  Nd7 {[%clk 0:02:36]} 18. Bxe4 {[%clk 0:02:23]}  dxe4 {[%clk 0:02:35]} 19. Qxe4 {[%clk 0:02:24]}  Nf6 {[%clk 0:02:34]} 20. Qe2 {[%clk 0:02:23]}  Nd5 {[%clk 0:02:34]} 21. h4 {[%clk 0:02:12]}  h5 {[%clk 0:02:29]} 22. Nc4 {[%clk 0:02:02]}  Rc7 {[%clk 0:02:23]} 23. f5 {[%clk 0:01:53]}  gxf5 {[%clk 0:02:18]} 24. Qxh5 {[%clk 0:01:51]}  Qf6 {[%clk 0:02:16]} 25. Ne5 {[%clk 0:01:20]}  Qh6 {[%clk 0:02:03]} 26. Qf3 {[%clk 0:01:16]}  Bf6 {[%clk 0:01:52]} 27. Bc1 {[%clk 0:01:15]}  Qg7 {[%clk 0:01:52]} 28. Qh5 {[%clk 0:01:14]}  Rd8 {[%clk 0:01:36]} 29. Bg5 {[%clk 0:01:08]}  Nc3 {[%clk 0:01:35]} 30. Bxf6 {[%clk 0:00:50]}  Qxf6 {[%clk 0:01:36]} 31. Rd3 {[%clk 0:00:50]}  Nb5 {[%clk 0:01:23]} 32. Qd1 {[%clk 0:00:38]}  Re7 {[%clk 0:01:13]} 33. a4 {[%clk 0:00:27]}  Nc7 {[%clk 0:01:12]} 34. g4 {[%clk 0:00:19]}  fxg4 {[%clk 0:00:59]} 35. Re4 {[%clk 0:00:13]}  Kh8 {[%clk 0:00:22]} 36. Rxg4 {[%clk 0:00:12]}  Rg8 {[%clk 0:00:21]} 37. Rdg3 {[%clk 0:00:11]}  Ree8 {[%clk 0:00:20]} 38. Rxg8+ {[%clk 0:00:11]} 1-0


[Site "https://www.chess.com"]

[Event "Titled Tuesday Blitz April 18 Early 2023"]
[White "Smirnov, Pavel"]
[Black "Narayanan.S.L"]
[WhiteFideId "4123425"]
[BlackFideId "5058422"]
[WhiteElo "2519"]
[BlackElo "2547"]
[Result "1-0"]
[Round "05"]
[TimeControl "180+2"]
[Date "2023.04.18"]
[WhiteClock "0:00:03"]
[BlackClock "0:00:12"]

1. d4 {[%clk 0:02:55]}  Nf6 {[%clk 0:02:59]} 2. c4 {[%clk 0:02:55]}  c5 {[%clk 0:02:59]} 3. d5 {[%clk 0:02:54]}  e6 {[%clk 0:02:59]} 4. Nc3 {[%clk 0:02:54]}  exd5 {[%clk 0:03:00]} 5. cxd5 {[%clk 0:02:55]}  d6 {[%clk 0:03:00]} 6. e4 {[%clk 0:02:55]}  a6 {[%clk 0:03:00]} 7. a4 {[%clk 0:02:54]}  g6 {[%clk 0:03:01]} 8. Nge2 {[%clk 0:02:50]}  Bg7 {[%clk 0:03:01]} 9. Ng3 {[%clk 0:02:50]}  h5 {[%clk 0:03:01]} 10. Be2 {[%clk 0:02:47]}  h4 {[%clk 0:03:00]} 11. Nf1 {[%clk 0:02:47]}  Nbd7 {[%clk 0:03:00]} 12. Be3 {[%clk 0:02:45]}  Rb8 {[%clk 0:02:59]} 13. Nd2 {[%clk 0:02:44]}  h3 {[%clk 0:02:56]} 14. g3 {[%clk 0:02:43]}  Ne5 {[%clk 0:02:57]} 15. O-O {[%clk 0:02:25]}  Nfg4 {[%clk 0:02:52]} 16. Bf4 {[%clk 0:02:20]}  g5 {[%clk 0:02:52]} 17. Bxe5 {[%clk 0:02:12]}  Nxe5 {[%clk 0:02:53]} 18. f4 {[%clk 0:02:00]}  gxf4 {[%clk 0:02:52]} 19. gxf4 {[%clk 0:02:01]}  Ng6 {[%clk 0:02:52]} 20. Kh1 {[%clk 0:01:56]}  Qh4 {[%clk 0:02:45]} 21. Nc4 {[%clk 0:01:47]}  Nxf4 {[%clk 0:02:29]} 22. Nxd6+ {[%clk 0:01:44]}  Kf8 {[%clk 0:02:30]} 23. Nxc8 {[%clk 0:01:38]}  Rxc8 {[%clk 0:02:28]} 24. Bg4 {[%clk 0:01:37]}  Qg5 {[%clk 0:02:08]} 25. Qf3 {[%clk 0:01:04]}  Be5 {[%clk 0:02:08]} 26. Ne2 {[%clk 0:01:03]}  Rh4 {[%clk 0:01:54]} 27. Rg1 {[%clk 0:00:19]}  Nxe2 {[%clk 0:01:52]} 28. Qxe2 {[%clk 0:00:18]}  Rd8 {[%clk 0:01:52]} 29. Raf1 {[%clk 0:00:17]}  Qh6 {[%clk 0:01:35]} 30. Be6 {[%clk 0:00:16]}  Rf4 {[%clk 0:01:34]} 31. Rxf4 {[%clk 0:00:16]}  Bxf4 {[%clk 0:01:33]} 32. Qg4 {[%clk 0:00:08]}  Ke7 {[%clk 0:01:27]} 33. Bxf7 {[%clk 0:00:06]}  Kxf7 {[%clk 0:01:27]} 34. Qf5+ {[%clk 0:00:06]}  Ke7 {[%clk 0:01:28]} 35. Rg6 {[%clk 0:00:06]}  Qxg6 {[%clk 0:01:19]} 36. Qxg6 {[%clk 0:00:05]}  Rf8 {[%clk 0:01:19]} 37. Qe6+ {[%clk 0:00:05]}  Kd8 {[%clk 0:01:20]} 38. d6 {[%clk 0:00:05]}  Bg5 {[%clk 0:01:15]} 39. Qxh3 {[%clk 0:00:05]}  c4 {[%clk 0:00:57]} 40. Qe6 {[%clk 0:00:05]}  b5 {[%clk 0:00:23]} 41. axb5 {[%clk 0:00:04]}  axb5 {[%clk 0:00:24]} 42. Qd5 {[%clk 0:00:04]}  Bh6 {[%clk 0:00:19]} 43. Qc6 {[%clk 0:00:03]}  Rf7 {[%clk 0:00:13]} 44. e5 {[%clk 0:00:03]}  Be3 {[%clk 0:00:12]} 45. e6 {[%clk 0:00:03]}  Rf1+ {[%clk 0:00:12]} 46. Kg2 {[%clk 0:00:03]} 1-0


[Site "https://www.chess.com"]

[Event "Titled Tuesday Blitz April 18 Early 2023"]
[White "Samunenkov, Ihor"]
[Black "Drozdowski, Kacper"]
[WhiteFideId "14187086"]
[BlackFideId "1136720"]
[WhiteElo "2457"]
[BlackElo "2497"]
[Result "0-1"]
[Round "05"]
[TimeControl "180+2"]
[Date "2023.04.18"]
[WhiteClock "0:00:02"]
[BlackClock "0:00:19"]

1. d4 {[%clk 0:03:00]}  Nf6 {[%clk 0:02:57]} 2. c4 {[%clk 0:03:01]}  g6 {[%clk 0:02:57]} 3. Nc3 {[%clk 0:03:02]}  d5 {[%clk 0:02:57]} 4. cxd5 {[%clk 0:03:01]}  Nxd5 {[%clk 0:02:58]} 5. Bd2 {[%clk 0:03:02]}  Bg7 {[%clk 0:02:58]} 6. e4 {[%clk 0:03:02]}  Nb6 {[%clk 0:02:58]} 7. Be3 {[%clk 0:03:02]}  O-O {[%clk 0:02:58]} 8. Be2 {[%clk 0:02:51]}  f5 {[%clk 0:02:54]} 9. exf5 {[%clk 0:02:50]}  Bxf5 {[%clk 0:02:54]} 10. Nf3 {[%clk 0:02:50]}  Nc6 {[%clk 0:02:53]} 11. O-O {[%clk 0:02:49]}  e5 {[%clk 0:02:50]} 12. Qb3+ {[%clk 0:02:32]}  Kh8 {[%clk 0:02:49]} 13. dxe5 {[%clk 0:02:26]}  Nxe5 {[%clk 0:02:49]} 14. Rad1 {[%clk 0:02:25]}  Qe7 {[%clk 0:02:41]} 15. Nd4 {[%clk 0:02:03]}  Rae8 {[%clk 0:02:18]} 16. Nxf5 {[%clk 0:01:54]}  gxf5 {[%clk 0:02:17]} 17. Nd5 {[%clk 0:01:36]}  Nxd5 {[%clk 0:02:16]} 18. Rxd5 {[%clk 0:01:23]}  b6 {[%clk 0:01:54]} 19. Bh5 {[%clk 0:00:56]}  Rd8 {[%clk 0:01:53]} 20. Bf4 {[%clk 0:00:53]}  Rxd5 {[%clk 0:01:45]} 21. Qxd5 {[%clk 0:00:54]}  Rd8 {[%clk 0:01:43]} 22. Qb3 {[%clk 0:00:42]}  Nd3 {[%clk 0:01:42]} 23. Bd2 {[%clk 0:00:35]}  Nxb2 {[%clk 0:01:37]} 24. Bc3 {[%clk 0:00:32]}  Nd3 {[%clk 0:01:36]} 25. Rd1 {[%clk 0:00:29]}  Ne5 {[%clk 0:00:48]} 26. Rxd8+ {[%clk 0:00:20]}  Qxd8 {[%clk 0:00:49]} 27. Qe6 {[%clk 0:00:19]}  Qd7 {[%clk 0:00:41]} 28. Qb3 {[%clk 0:00:11]}  c5 {[%clk 0:00:41]} 29. h3 {[%clk 0:00:10]}  Ng6 {[%clk 0:00:37]} 30. Bxg7+ {[%clk 0:00:10]}  Kxg7 {[%clk 0:00:38]} 31. Qc3+ {[%clk 0:00:08]}  Qd4 {[%clk 0:00:38]} 32. Qf3 {[%clk 0:00:06]}  Kf6 {[%clk 0:00:31]} 33. Qc6+ {[%clk 0:00:06]}  Kg5 {[%clk 0:00:32]} 34. Bxg6 {[%clk 0:00:03]}  hxg6 {[%clk 0:00:31]} 35. g3 {[%clk 0:00:04]}  Kh6 {[%clk 0:00:27]} 36. Qc8 {[%clk 0:00:03]}  Kh7 {[%clk 0:00:22]} 37. Qc7+ {[%clk 0:00:02]}  Qg7 {[%clk 0:00:22]} 38. Qc8 {[%clk 0:00:02]}  Qe7 {[%clk 0:00:21]} 39. h4 {[%clk 0:00:02]}  Kg7 {[%clk 0:00:21]} 40. Kg2 {[%clk 0:00:02]}  Kf6 {[%clk 0:00:22]} 41. Qc6+ {[%clk 0:00:02]}  Ke5 {[%clk 0:00:21]} 42. Qc8 {[%clk 0:00:01]}  Kd4 {[%clk 0:00:21]} 43. Qc6 {[%clk 0:00:02]}  Qe4+ {[%clk 0:00:19]} 0-1


[Site "https://www.chess.com"]